bitfinex-derivatives/quotes_SOLF0:USTF0_20250817
["timestamp","ask_amount","ask_price","bid_price","bid_amount"]
[1755431797154,8.4409709,193.45,193.4,2.78]
[1755431797348,4.63743026,193.44,193.4,2.78]
[1755431797548,5.84964178,193.52,193.4,2.78]
[1755431797749,10.44171588,193.51,193.4,2.78]
[1755431797951,10.44171588,193.5,193.4,2.78]
[1755431798149,10.44171588,193.49,193.4,2.78]
[1755431798353,10.44171588,193.48,193.4,2.78]
[1755431798650,10.44171588,193.47,193.4,2.78]
[1755431798849,8.45400045,193.46,193.4,2.78]
[1755431799057,8.45400045,193.45,193.4,2.78]
[1755431799254,4.65046885,193.44,193.4,2.78]
[1755431799450,5.84964178,193.52,193.4,2.78]
[1755431799648,10.4418234,193.51,193.4,2.78]
[1755431799854,10.4418234,193.5,193.4,2.78]
[1755431800146,10.4418234,193.49,193.4,2.78]
[1755431800349,10.4418234,193.48,193.4,2.78]
[1755431800546,10.4418234,193.47,193.4,2.78]
[1755431800858,10.44185343,193.46,193.4,2.78]
[1755431801060,8.4540639,193.45,193.4,2.78]
[1755431801358,8.39538384,193.44,193.4,2.78]
[1755431801556,4.65049347,193.43,193.4,2.78]
[1755431801758,5.84964178,193.51,193.4,2.78]
[1755431801957,10.38337678,193.5,193.4,2.78]
[1755431802158,10.38337678,193.49,193.4,2.78]
[1755431802360,10.38337678,193.48,193.4,2.78]
[1755431802658,10.38337678,193.47,193.4,2.78]
[1755431802956,10.38337678,193.46,193.4,2.78]
[1755431803160,8.39565278,193.45,193.4,2.78]
[1755431803360,4.65076029,193.44,193.4,2.78]
[1755431803555,4.65076029,193.43,193.4,2.78]
[1755431803858,5.84964178,193.51,193.4,2.78]
[1755431804061,10.38197089,193.5,193.4,2.78]
[1755431804264,10.38197089,193.49,193.4,2.78]
[1755431804553,10.38197089,193.48,193.4,2.78]
[1755431804757,5.84964178,193.52,193.4,2.78]
[1755431804758,10.38197089,193.47,193.4,2.78]
[1755431804960,8.39453501,193.46,193.4,2.78]
[1755431805160,8.39453501,193.45,193.4,2.78]
[1755431805361,4.65008616,193.44,193.4,2.78]
[1755431805561,4.65008616,193.43,193.4,2.78]
[1755431805762,5.84964178,193.52,193.4,2.78]
[1755431805962,10.4484945,193.51,193.4,2.78]
[1755431806165,10.4484945,193.5,193.4,2.78]
[1755431806364,10.4484945,193.49,193.4,2.78]
[1755431806671,10.4484945,193.48,193.4,2.78]
[1755431806855,10.4484945,193.47,193.4,2.78]
[1755431807062,10.4484945,193.46,193.4,2.78]
[1755431807262,10.4484945,193.45,193.4,2.78]
[1755431807456,10.4484945,193.44,193.4,2.78]
[1755431807663,4.64977467,193.43,193.4,2.78]
[1755431807863,5.84964178,193.51,193.4,2.78]
[1755431808063,10.58108573,193.5,193.4,2.78]
[1755431808265,10.58108573,193.49,193.4,2.78]
[1755431808464,10.58108977,193.48,193.4,2.78]
[1755431808661,10.58108977,193.47,193.4,2.78]
[1755431808859,10.58108977,193.46,193.4,2.78]
[1755431809053,10.58108977,193.45,193.4,2.78]
[1755431809259,10.58108977,193.44,193.4,2.78]
[1755431809469,4.64986444,193.43,193.4,2.78]
[1755431809768,5.84964178,193.51,193.4,2.78]
[1755431809967,10.58079647,193.5,193.4,2.78]
[1755431810167,10.58079647,193.49,193.4,2.78]
[1755431810366,10.58079647,193.48,193.4,2.78]
[1755431810565,10.58079647,193.47,193.4,2.78]
[1755431810867,10.58079647,193.46,193.4,2.78]
[1755431811064,10.58079647,193.45,193.4,2.78]
[1755431811261,10.58079647,193.44,193.4,2.78]
[1755431811462,4.6497239,193.43,193.4,2.78]
[1755431811666,5.84964178,193.51,193.4,2.78]
[1755431811965,10.58064154,193.5,193.4,2.78]
[1755431812164,10.58064154,193.49,193.4,2.78]
[1755431812363,10.58064154,193.48,193.4,2.78]
[1755431812562,10.58064154,193.47,193.4,2.78]
[1755431812764,10.58064154,193.46,193.4,2.78]
[1755431812964,10.58064154,193.45,193.4,2.78]
[1755431813264,6.76932938,193.44,193.4,2.78]
[1755431813464,4.64962468,193.43,193.4,2.78]
[1755431813662,5.84964178,193.52,193.4,2.78]
[1755431813862,10.58062886,193.51,193.4,2.78]
[1755431814071,10.58062886,193.5,193.4,2.78]
[1755431814261,10.58062886,193.49,193.4,2.78]
[1755431814468,10.58062886,193.48,193.4,2.78]
[1755431814664,10.58062886,193.47,193.4,2.78]
[1755431814866,10.58062886,193.46,193.4,2.78]
[1755431815163,10.58062886,193.45,193.4,2.78]
[1755431815369,6.76935732,193.44,193.4,2.78]
[1755431815663,4.64962468,193.43,193.4,2.78]
[1755431815965,5.84964178,193.52,193.4,2.78]
[1755431816165,10.58094754,193.51,193.4,2.78]
[1755431816369,10.58094754,193.5,193.4,2.78]
[1755431816670,10.58094754,193.49,193.4,2.78]
[1755431816865,10.58094754,193.48,193.4,2.78]
[1755431817069,3.81139177,193.47,193.4,2.78]
[1755431817368,10.58122057,193.46,193.4,2.78]
[1755431817668,10.54779542,193.45,193.4,2.78]
[1755431817871,10.54779542,193.44,193.4,2.78]
[1755431818063,4.65002018,193.43,193.4,2.78]
[1755431818262,5.84964178,193.51,193.4,2.78]
[1755431818464,10.54817101,193.5,193.4,2.78]
[1755431818771,10.54817101,193.49,193.4,2.78]
[1755431818962,10.54817101,193.48,193.4,2.78]
[1755431819161,73.09322798,193.54,193.4,2.78]
[1755431819162,10.54817101,193.47,193.4,2.78]
[1755431819467,10.54817101,193.46,193.4,2.78]
[1755431819765,10.54817101,193.45,193.4,2.78]
[1755431820070,6.73647457,193.44,193.4,2.78]
[1755431820273,4.65006913,193.43,193.4,2.78]
[1755431820567,5.84964178,193.51,193.4,2.78]
[1755431820757,10.54812051,193.5,193.4,2.78]
[1755431820961,10.54812051,193.49,193.4,2.78]
[1755431821265,73.09322798,193.54,193.4,2.78]
[1755431821266,10.54812051,193.48,193.4,2.78]
[1755431821576,10.54812051,193.47,193.4,2.78]
[1755431821758,10.54812051,193.46,193.4,2.78]
[1755431821958,5.89808641,193.45,193.4,2.78]
[1755431822165,6.73644481,193.44,193.4,2.78]
[1755431822468,5.84964178,193.52,193.4,2.78]
[1755431822670,10.54806917,193.51,193.4,2.78]
[1755431822870,5.84964178,193.52,193.4,2.78]
[1755431822871,10.54806917,193.5,193.4,2.78]
[1755431823073,10.54806917,193.49,193.4,2.78]
[1755431823265,10.54806917,193.48,193.4,2.78]
[1755431823569,5.84964178,193.52,193.4,2.78]
[1755431823570,10.54806917,193.47,193.4,2.78]
[1755431823872,10.54806917,193.46,193.4,2.78]
[1755431824172,10.54806917,193.45,193.4,2.78]
[1755431824373,6.73645904,193.44,193.4,2.78]
[1755431824670,5.84964178,193.52,193.4,2.78]
[1755431824870,10.54810163,193.51,193.4,2.78]
[1755431825071,3.8116222,193.5,193.4,2.78]
[1755431825271,10.54810163,193.49,193.4,2.78]
[1755431825472,10.54810163,193.48,193.4,2.78]
[1755431825782,10.54809557,193.47,193.4,2.78]
[1755431825966,10.54809557,193.46,193.4,2.78]
[1755431826163,4.6500217,193.45,193.4,2.78]
[1755431826376,70.16840709,193.54,193.4,2.78]
[1755431826677,10.61865827,193.53,193.4,2.78]
[1755431826863,10.61865827,193.52,193.4,2.78]
[1755431827174,10.61865827,193.51,193.4,2.78]
[1755431827372,10.61865827,193.5,193.4,2.78]
[1755431827668,64.31876531,193.54,193.41,2.83]
[1755431827876,5.89536973,193.53,193.43,2.83]
[1755431828075,2.91,193.62,193.45,2.83]
[1755431828372,2.91,193.61,193.45,11.48646107]
[1755431828674,2.91,193.61,193.47,2.83]
[1755431868306,3.7563412,193.6,193.47,2.83]
[1755431868607,2.82,193.59,193.47,2.83]
[1755431872204,3.77091253,193.58,193.47,11.48646107]
[1755431872507,2.82,193.59,193.48,2.86]
[1755431872806,2.82,193.57,193.48,2.86]
[1755431873505,2.82,193.57,193.49,2.86]
[1755431878315,2.82,193.57,193.49,8.65646107]
[1755431878608,2.82,193.57,193.5,2.86]
[1755431881715,2.82,193.59,193.5,2.86]
[1755431889717,2.82,193.57,193.49,2.86]
[1755431906734,2.82,193.57,193.47,8.65646107]
[1755431907034,2.82,193.57,193.48,2.82]
[1755431924162,2.82,193.57,193.48,11.47646107]
[1755431924363,2.82,193.57,193.49,2.82]
[1755431926067,2.82,193.57,193.5,2.82]
[1755431960489,2.82,193.57,193.5,11.47646107]
[1755431960791,2.82,193.57,193.51,3.0]
[1755431969093,2.82,193.57,193.51,11.65646107]
[1755431969294,2.82,193.57,193.52,3.0]
[1755431973798,5.84964178,193.66,193.5,8.65646107]
[1755431973799,2.78,193.56,193.5,8.65646107]
[1755431973996,8.24278333,193.55,193.49,3.0]
[1755431974301,2.78,193.54,193.49,3.0]
[1755431976295,2.78,193.62,193.5,3.0]
[1755431976497,66.74201466,193.63,193.5,3.0]
[1755431976498,2.78,193.6,193.5,3.0]
[1755431976802,2.78,193.58,193.5,3.0]
[1755432004137,2.76,193.66,193.54,11.61646107]
[1755432004331,2.76,193.66,193.56,2.96]
[1755432005435,2.76,193.75,193.59,11.61646107]
[1755432005639,1.07822142,193.77,193.57,347.0]
[1755432005640,2.76,193.73,193.62,2.96]
[1755432020547,3.01,193.76,193.62,2.96]
[1755432023637,3.01,193.76,193.64,2.87]
[1755432024449,3.01,193.76,193.64,129.03]
[1755432024641,3.01,193.76,193.65,2.87]
[1755432044354,3.7064117,193.75,193.65,2.87]
[1755432044554,3.01,193.74,193.65,2.87]
[1755432048057,3.71072057,193.73,193.65,2.87]
[1755432048257,3.01,193.74,193.65,2.87]
[1755432048460,1.07822142,193.77,193.65,2.87]
[1755432048461,3.71072057,193.73,193.65,2.87]
[1755432048659,3.02,193.72,193.65,2.87]
[1755432053360,3.02,193.72,193.64,126.16]
[1755432053570,3.02,193.72,193.59,2.92]
[1755432053765,3.02,193.7,193.61,2.92]
[1755432081881,4.85711624,193.69,193.61,2.92]
[1755432082182,2.84,193.67,193.61,2.92]
[1755432082386,2.84,193.65,193.59,128.92]
[1755432082576,4.85800368,193.64,193.59,128.92]
[1755432082778,7.69813867,193.63,193.59,128.92]
[1755432082976,2.84,193.62,193.59,128.92]
[1755432083876,2.84,193.62,193.59,126.04]
[1755432085382,2.84,193.62,193.6,2.88]
[1755432086788,2.84,193.72,193.59,128.92]
[1755432087087,2.84,193.7,193.59,128.92]
[1755432087287,2.84,193.68,193.59,128.92]
[1755432087484,2.84,193.66,193.59,128.92]
[1755432087685,4.85149359,193.65,193.59,128.92]
[1755432087892,7.69149359,193.64,193.59,128.92]
[1755432088089,2.84,193.64,193.59,128.92]
[1755432088988,2.84,193.64,193.59,126.04]
[1755432089189,2.84,193.64,193.6,2.88]
[1755432089387,2.84,193.64,193.61,2.88]
[1755432090282,2.84,193.64,193.62,2.88]
[1755432091190,2.84,193.64,193.6,2.88]
[1755432091388,2.84,193.64,193.59,126.04]
[1755432092087,2.84,193.64,193.59,128.92]
[1755432092392,2.84,193.64,193.6,2.88]
[1755432096596,21.34964178,193.73,193.6,2.88]
[1755432096597,2.84,193.62,193.6,2.88]
[1755432097096,2.84,193.62,193.59,126.04]
[1755432097297,2.84,193.62,193.61,2.88]
[1755432099393,2.84,193.62,193.59,126.04]
[1755432099595,2.84,193.62,193.6,2.88]
[1755432099997,2.84,193.62,193.59,126.04]
[1755432100294,2.84,193.72,193.6,2.88]
[1755432100498,8.65074909,193.71,193.6,2.88]
[1755432100699,2.84,193.69,193.6,2.88]
[1755432100888,2.84,193.67,193.6,2.88]
[1755432101197,2.84,193.65,193.6,2.88]
[1755432101388,2.84,193.63,193.6,2.88]
[1755432102797,2.84,193.63,193.61,2.88]
[1755432106707,2.84,193.63,193.6,2.88]
[1755432110300,2.79,193.62,193.56,2.77]
[1755432114906,5.84964178,193.73,193.56,2.77]
[1755432115115,2.79,193.71,193.56,2.77]
[1755432115314,2.79,193.69,193.56,2.77]
[1755432115611,2.79,193.67,193.56,2.77]
[1755432115811,2.79,193.65,193.56,2.77]
[1755432116113,2.79,193.63,193.56,2.77]
[1755432116313,4.89393965,193.64,193.56,2.77]
[1755432116314,2.79,193.61,193.56,2.77]
[1755432121314,2.79,193.6,193.56,2.77]
[1755432121513,5.84964178,193.71,193.56,2.77]
[1755432121708,2.79,193.69,193.56,2.77]
[1755432121908,2.79,193.67,193.56,2.77]
[1755432122114,2.79,193.65,193.56,2.77]
[1755432122316,4.89860876,193.64,193.56,2.77]
[1755432122616,2.79,193.65,193.56,2.77]
[1755432129218,2.79,193.63,193.56,2.77]
[1755432134820,8.34591325,193.62,193.56,2.77]
[1755432135020,2.79,193.68,193.56,2.77]
[1755432135318,2.79,193.66,193.56,2.77]
[1755432135519,2.79,193.64,193.56,2.77]
[1755432135722,2.79,193.62,193.55,126.06]
[1755432136020,2.79,193.6,193.55,126.06]
[1755432136222,8.34728537,193.59,193.54,2.77]
[1755432136522,2.79,193.58,193.54,2.77]
[1755432138222,2.75,193.56,193.49,2.77]
[1755432138412,5.84964178,193.63,193.49,2.77]
[1755432138413,4.56734936,193.55,193.49,2.77]
[1755432138614,2.75,193.54,193.49,2.77]
[1755432138814,2.75,193.54,193.5,2.77]
[1755432139010,2.75,193.54,193.45,126.91895767]
[1755432139215,2.75,193.54,193.51,2.77]
[1755432145429,2.75,193.54,193.45,126.91895767]
[1755432145729,2.75,193.54,193.5,2.77]
[1755432145925,2.75,193.54,193.51,2.77]
[1755432146321,2.75,193.54,193.52,2.77]
[1755432147333,2.75,193.54,193.46,2.77]
[1755432161646,2.75,193.54,193.42,2.77]
[1755432161942,2.75,193.52,193.42,2.77]
[1755432165439,2.75,193.5,193.42,2.77]
[1755432165645,2.75,193.48,193.42,2.77]
[1755432166148,2.75,193.46,193.3,126.04]
[1755432166452,2.75,193.46,193.31,2.77]
[1755432166655,4.53259051,193.45,193.32,0.8999806]
[1755432166849,2.75,193.44,193.33,2.77]
[1755432168956,2.94,193.42,193.33,2.77]
[1755432169649,4.52317796,193.41,193.33,2.77]
[1755432169851,7.46336965,193.4,193.31,2.93]
[1755432170048,416.57850929,193.53,193.22,347.14]
[1755432170049,2.94,193.38,193.3,2.93]
[1755432170453,2.94,193.36,193.28,2.93]
[1755432171357,2.94,193.36,193.26,2.93]
[1755432172060,4.51298582,193.35,193.26,2.93]
[1755432172254,4.51315645,193.34,193.23,2.93]
[1755432172454,2.94,193.39,193.23,2.93]
[1755432172655,2.94,193.37,193.23,2.93]
[1755432172861,2.94,193.35,193.23,2.93]
[1755432173050,2.94,193.33,193.23,2.93]
[1755432174461,2.94,193.45,193.23,2.93]
[1755432174661,10.18932454,193.44,193.23,2.93]
[1755432174860,2.94,193.42,193.23,2.93]
[1755432175064,2.94,193.4,193.23,2.93]
[1755432175362,2.94,193.38,193.23,2.93]
[1755432176460,2.94,193.38,193.24,126.14]
[1755432176765,2.94,193.36,193.25,2.93]
[1755432181769,2.94,193.48,193.25,2.93]
[1755432181967,21.34964178,193.5,193.25,2.93]
[1755432181968,10.18270088,193.47,193.25,2.93]
[1755432182168,2.94,193.45,193.25,2.93]
[1755432182370,2.94,193.43,193.25,2.93]
[1755432183260,2.94,193.41,193.27,2.93]
[1755432183458,2.94,193.39,193.27,2.93]
[1755432183669,2.94,193.37,193.27,2.93]
[1755432183866,2.94,193.35,193.27,2.93]
[1755432184264,2.94,193.35,193.25,2.93]
[1755432184764,4.49632317,193.34,193.25,2.93]
[1755432184967,2.94,193.33,193.25,2.93]
[1755432185880,2.94,193.33,193.22,2.93]
[1755432185881,4.49475915,193.32,193.22,2.93]
[1755432186170,2.94,193.33,193.22,2.93]
[1755432186360,21.34964178,193.41,193.22,2.93]
[1755432186361,2.94,193.31,193.22,2.93]
[1755432188171,362.94,193.39,193.11,347.4]
[1755432188172,2.94,193.29,193.16,2.93]
[1755432188369,4.48330182,193.28,193.16,2.93]
[1755432188676,2.94,193.27,193.16,2.93]
[1755432190671,4.4797668,193.26,193.16,2.93]
[1755432190872,2.94,193.27,193.16,2.93]
[1755432191175,2.94,193.25,193.16,2.93]
[1755432191572,2.94,193.23,193.12,2.93]
[1755432192167,4.47821364,193.22,193.12,2.93]
[1755432192362,4.47545331,193.21,193.12,2.93]
[1755432192671,2.94,193.2,193.12,2.93]
[1755432199075,2.94,193.2,193.09,126.34]
[1755432199282,2.94,193.2,193.0,347.5]
[1755432199283,4.46835244,193.19,193.02,126.48]
[1755432199579,5.84964178,193.3,193.02,126.48]
[1755432199580,3.0,193.17,193.03,3.0]
[1755432199780,3.0,193.17,193.04,0.90127422]
[1755432199969,3.0,193.17,193.05,3.0]
[1755432202175,4.47079864,193.16,193.05,3.0]
[1755432202381,3.0,193.17,193.05,3.0]
[1755432202585,4.471652,193.16,193.05,3.0]
[1755432202780,3.0,193.15,193.05,3.0]
[1755432206379,4.48028921,193.14,193.05,3.0]
[1755432206574,3.0,193.13,193.05,3.0]
[1755432208384,4.48442911,193.12,193.05,3.0]
[1755432208586,3.0,193.11,193.05,3.0]
[1755432212883,3.0,193.21,193.05,3.0]
[1755432213082,3.0,193.19,193.05,3.0]
[1755432213281,3.0,193.17,193.05,3.0]
[1755432213480,10.14222107,193.16,193.05,3.0]
[1755432213684,99.52110695,193.22,193.05,3.0]
[1755432213685,4.49423246,193.15,193.05,3.0]
[1755432213883,3.0,193.13,193.05,3.0]
[1755432214089,4.49423246,193.12,193.05,3.0]
[1755432214289,3.0,193.16,193.05,3.0]
[1755432214581,4.49724895,193.15,193.05,3.0]
[1755432214787,3.0,193.16,193.05,3.0]
[1755432214987,4.49720392,193.15,193.05,3.0]
[1755432215187,3.0,193.16,193.05,3.0]
[1755432215391,4.49765169,193.15,193.05,3.0]
[1755432215592,3.0,193.19,193.05,3.0]
[1755432215787,4.49793465,193.18,193.05,3.0]
[1755432215987,4.49793465,193.17,193.05,3.0]
[1755432216190,3.0,193.2,193.05,3.0]
[1755432216395,7.49831803,193.19,193.05,3.0]
[1755432216597,3.0,193.17,193.05,3.0]
[1755432220094,3.0,193.24,193.05,3.0]
[1755432220298,3.0,193.22,193.05,3.0]
[1755432220599,3.0,193.2,193.05,3.0]
[1755432228310,3.0,193.2,193.06,2.78]
[1755432229313,3.0,193.2,193.07,2.78]
[1755432231614,3.0,193.2,193.08,2.78]
[1755432231818,3.0,193.2,193.1,2.78]
[1755432240522,3.06,193.3,193.11,11.43646107]
[1755432240716,3.06,193.28,193.14,2.78]
[1755432243118,3.06,193.28,193.15,8.65646107]
[1755432243316,3.06,193.28,193.16,8.65646107]
[1755432243520,3.06,193.28,193.17,2.78]
[1755432243724,3.06,193.28,193.18,126.66]
[1755432243931,3.06,193.28,193.19,2.78]
[1755432247924,3.06,193.4,193.19,2.78]
[1755432248119,3.06,193.38,193.19,2.78]
[1755432248529,3.06,193.38,193.19,11.43646107]
[1755432248724,3.06,193.38,193.19,2.78]
[1755432252034,3.06,193.36,193.19,2.78]
[1755432252231,10.14952648,193.35,193.18,126.6]
[1755432252533,21.38964178,193.39,193.19,2.78]
[1755432252534,3.06,193.33,193.19,2.78]
[1755432252734,3.06,193.31,193.19,2.78]
[1755432253032,3.06,193.31,193.18,126.6]
[1755432253537,3.06,193.29,193.18,126.6]
[1755432254228,3.06,193.27,193.18,126.6]
[1755432256926,3.06,193.25,193.18,2.78]
[1755432257733,3.06,193.25,193.15,2.78]
[1755432262630,2.98,193.23,193.07,2.78]
[1755432262938,2.98,193.23,193.09,2.78]
[1755432267837,2.98,193.23,193.11,2.78]
[1755432273439,2.98,193.34,193.11,2.78]
[1755432273642,10.17880385,193.33,193.11,11.43646107]
[1755432273946,2.98,193.31,193.13,2.78]
[1755432275656,2.98,193.31,193.14,2.78]
[1755432275947,2.98,193.31,193.15,2.78]
[1755432276550,2.98,193.31,193.16,2.78]
[1755432278750,2.98,193.31,193.17,2.78]
[1755432279456,2.98,193.31,193.18,2.78]
[1755432279652,2.98,193.31,193.2,2.78]
[1755432299066,2.98,193.31,193.17,347.66]
[1755432299267,2.98,193.31,193.22,2.76]
[1755432308680,2.98,193.31,193.18,2.76]
[1755432308878,2.98,193.31,193.17,347.66]
[1755432309575,2.98,193.31,193.17,350.42]
[1755432311887,2.98,193.31,193.17,347.66]
[1755432312182,8.22996811,193.3,193.18,2.76]
[1755432312386,4.5072304,193.29,193.18,2.76]
[1755432312576,2.77,193.28,193.18,2.76]
[1755432318687,2.77,193.28,193.19,126.46]
[1755432318884,2.77,193.28,193.2,2.97]
[1755432323491,2.98,193.3,193.2,11.60127207]
[1755432323690,2.98,193.3,193.21,2.97]
[1755432325985,2.98,193.3,193.18,8.63127207]
[1755432325986,8.25610171,193.29,193.18,2.97]
[1755432326189,2.98,193.28,193.19,126.48]
[1755432327586,2.98,193.28,193.19,129.45]
[1755432330598,2.98,193.28,193.2,2.97]
[1755432338109,2.98,193.36,193.2,2.97]
[1755432338310,2.98,193.34,193.2,2.97]
[1755432338511,2.98,193.32,193.2,2.97]
[1755432344415,2.98,193.32,193.22,2.97]
[1755432348814,4.52802669,193.31,193.22,2.97]
[1755432349019,2.9,193.3,193.22,2.97]
[1755432355821,2.9,193.3,193.19,126.48]
[1755432356213,2.9,193.3,193.2,2.93]
[1755432357613,8.28261438,193.29,193.2,2.93]
[1755432357918,2.9,193.28,193.2,2.93]
[1755432360616,2.9,193.26,193.2,2.93]
[1755432360821,2.9,193.26,193.18,2.93]
[1755432361912,8.28088625,193.25,193.18,2.93]
[1755432362113,2.9,193.24,193.18,2.93]
[1755432370925,5.76824117,193.35,193.18,2.93]
[1755432371122,2.9,193.26,193.18,2.93]
[1755432371622,2.9,193.36,193.18,2.93]
[1755432371824,2.9,193.34,193.18,2.93]
[1755432372019,10.2196259,193.33,193.18,2.93]
[1755432372232,2.9,193.31,193.18,2.93]
[1755432383524,2.78,193.29,193.19,2.94]
[1755432384428,2.78,193.27,193.19,2.94]
[1755432386328,2.78,193.25,193.18,126.4]
[1755432386841,2.78,193.25,193.18,129.34]
[1755432387232,2.78,193.25,193.19,2.94]
[1755432398036,8.27247742,193.24,193.19,2.94]
[1755432398237,2.78,193.23,193.19,2.94]
[1755432398431,2.78,193.23,193.16,2.94]
[1755432400238,2.78,193.23,193.14,2.94]
[1755432405050,2.78,193.23,193.13,347.58]
[1755432405246,2.78,193.21,193.14,2.94]
[1755432408847,2.78,193.21,193.13,3.04]
[1755432409041,8.25946425,193.2,193.13,3.04]
[1755432409350,2.76,193.18,193.11,3.04]
[1755432411853,2.76,193.18,193.09,3.04]
[1755432419265,2.76,193.18,193.05,3.04]
[1755432439381,4.55907259,193.17,193.05,3.04]
[1755432439684,2.78,193.16,193.05,3.04]
[1755432441187,2.78,193.14,193.05,3.04]
[1755432451384,2.78,193.14,193.05,8.63127207]
[1755432451589,2.78,193.14,193.06,2.97]
[1755432452281,2.78,193.14,193.07,2.97]
[1755432452693,2.78,193.14,193.07,8.63127207]
[1755432452891,2.78,193.14,193.08,2.97]
[1755432453192,2.78,193.13,193.1,2.97]
[1755432454199,76.86216896,193.22,193.09,129.51]
[1755432454497,2.78,193.13,193.1,2.97]
[1755432458394,2.78,193.12,193.09,126.54]
[1755432458995,2.78,193.12,193.09,129.51]
[1755432461903,2.78,193.11,193.06,2.97]
[1755432462296,2.78,193.11,193.05,2.97]
[1755432469506,2.78,193.11,193.04,126.78]
[1755432469913,2.78,193.11,193.05,3.01]
[1755432471309,3.05,193.09,193.05,3.01]
[1755432471612,3.05,193.09,193.06,3.01]
[1755432472610,5.76824117,193.19,193.04,126.78]
[1755432472804,3.05,193.17,193.05,3.01]
[1755432473004,3.05,193.15,193.05,3.01]
[1755432473205,3.05,193.13,193.05,3.01]
[1755432473405,10.51546089,193.12,193.05,3.01]
[1755432473605,4.70033692,193.11,193.05,3.01]
[1755432473812,3.05,193.1,193.05,3.01]
[1755432474007,3.05,193.19,193.05,3.01]
[1755432474311,3.05,193.17,193.05,3.01]
[1755432474516,3.05,193.15,193.05,3.01]
[1755432474814,3.05,193.13,193.05,3.01]
[1755432475009,10.51513514,193.12,193.05,3.01]
[1755432475218,4.70019724,193.11,193.05,3.01]
[1755432475411,3.05,193.1,193.05,3.01]
[1755432477517,5.76824117,193.19,193.04,126.78]
[1755432477820,15.54,193.21,193.06,3.01]
[1755432477821,3.05,193.17,193.06,3.01]
[1755432478025,3.05,193.15,193.06,3.01]
[1755432478226,3.05,193.13,193.06,3.01]
[1755432478426,5.76824117,193.2,193.06,3.01]
[1755432478427,4.70002888,193.12,193.06,3.01]
[1755432478623,3.05,193.11,193.06,3.01]
[1755432478827,5.76824117,193.2,193.06,3.01]
[1755432478828,3.05,193.1,193.06,3.01]
[1755432480230,3.05,193.09,193.06,3.01]
[1755432480629,3.05,193.11,193.06,3.01]
[1755432480825,3.05,193.13,193.06,3.01]
[1755432481331,3.05,193.2,193.06,8.63127207]
[1755432481627,3.05,193.2,193.08,11.64127207]
[1755432481832,3.05,193.2,193.09,3.01]